[Event "*** Titled Tuesday Blitz"]
[Site "Chess.com"]
[Date "2020.04.21"]
[Round "5"]
[White "RaphaeI"]
[Black "Beca95"]
[Result "1/2-1/2"]
[WhiteElo "2664"]
[BlackElo "2862"]
[TimeControl "180+1"]
[EndTime "10:58:25 PDT"]
[Termination "Game drawn by repetition"]

1. Nf3 {[%clk 0:03:00.9]} 1... d5 {[%clk 0:02:58.6]} 2. d4 {[%clk 0:03:00.6]}
2... Bf5 {[%clk 0:02:56.4]} 3. c4 {[%clk 0:02:59.8]} 3... e6 {[%clk 0:02:56.7]}
4. Nc3 {[%clk 0:03:00]} 4... Nc6 {[%clk 0:02:56.8]} 5. cxd5 {[%clk 0:02:58.9]}
5... exd5 {[%clk 0:02:56]} 6. Bf4 {[%clk 0:02:59.4]} 6... Bd6 {[%clk 0:02:54.9]}
7. Bg3 {[%clk 0:02:58.4]} 7... Nge7 {[%clk 0:02:51.6]} 8. e3 {[%clk 0:02:58.8]}
8... a6 {[%clk 0:02:51.2]} 9. Bd3 {[%clk 0:02:52.1]} 9... Bxd3 {[%clk 0:02:51]}
10. Qxd3 {[%clk 0:02:51.9]} 10... O-O {[%clk 0:02:47.8]} 11. Rc1 {[%clk
0:02:45]} 11... h6 {[%clk 0:02:45.1]} 12. a3 {[%clk 0:02:40.6]} 12... Qd7 {[%clk
0:02:44]} 13. O-O {[%clk 0:02:34.7]} 13... Bxg3 {[%clk 0:02:37.4]} 14. hxg3
{[%clk 0:02:35.6]} 14... Ng6 {[%clk 0:02:33.8]} 15. Na4 {[%clk 0:02:33.2]} 15...
Nce7 {[%clk 0:02:33.2]} 16. Nc5 {[%clk 0:02:29.4]} 16... Qc8 {[%clk 0:02:33.2]}
17. b4 {[%clk 0:02:27]} 17... b6 {[%clk 0:02:29.1]} 18. Nb3 {[%clk 0:02:24.9]}
18... Qd7 {[%clk 0:02:13.7]} 19. Rc3 {[%clk 0:02:13.2]} 19... Rfc8 {[%clk
0:02:12.9]} 20. Rfc1 {[%clk 0:02:13.1]} 20... Qd6 {[%clk 0:02:00.6]} 21. Qc2
{[%clk 0:01:35.1]} 21... c6 {[%clk 0:01:58.4]} 22. Ne1 {[%clk 0:01:17.1]} 22...
h5 {[%clk 0:01:55.4]} 23. Nf3 {[%clk 0:01:16.9]} 23... Re8 {[%clk 0:01:41.1]}
24. Nbd2 {[%clk 0:01:09.6]} 24... a5 {[%clk 0:01:35.5]} 25. Rb1 {[%clk
0:00:47.1]} 25... axb4 {[%clk 0:01:29.7]} 26. Rxb4 {[%clk 0:00:48]} 26... Ra6
{[%clk 0:01:28.9]} 27. e4 {[%clk 0:00:47.7]} 27... dxe4 {[%clk 0:01:23.5]} 28.
Nxe4 {[%clk 0:00:48.6]} 28... Qd7 {[%clk 0:01:17.3]} 29. Ne5 {[%clk 0:00:20.6]}
29... Qd5 {[%clk 0:01:12.4]} 30. Nxg6 {[%clk 0:00:12.4]} 30... Nxg6 {[%clk
0:01:10.6]} 31. Re3 {[%clk 0:00:13]} 31... Rea8 {[%clk 0:01:03.4]} 32. a4 {[%clk
0:00:13.5]} 32... Qd7 {[%clk 0:00:56.1]} 33. Rc4 {[%clk 0:00:13.8]} 33... Ne7
{[%clk 0:00:54.5]} 34. Nc3 {[%clk 0:00:13.9]} 34... Nf5 {[%clk 0:00:52.4]} 35.
Re4 {[%clk 0:00:13.4]} 35... g6 {[%clk 0:00:51.9]} 36. Qd3 {[%clk 0:00:12]}
36... Ra5 {[%clk 0:00:49.7]} 37. Rb4 {[%clk 0:00:11.4]} 37... c5 {[%clk
0:00:48.5]} 38. Rxb6 {[%clk 0:00:11.6]} 38... cxd4 {[%clk 0:00:48.3]} 39. Rb5
{[%clk 0:00:08]} 39... Rxb5 {[%clk 0:00:40.3]} 40. Qxb5 {[%clk 0:00:07.8]} 40...
Qxb5 {[%clk 0:00:36]} 41. Nxb5 {[%clk 0:00:08.7]} 41... Rxa4 {[%clk 0:00:36.2]}
42. f3 {[%clk 0:00:07.8]} 42... Ra1+ {[%clk 0:00:35.5]} 43. Kh2 {[%clk
0:00:06.6]} 43... d3 {[%clk 0:00:34.2]} 44. Re8+ {[%clk 0:00:06.3]} 44... Kg7
{[%clk 0:00:34.4]} 45. Rd8 {[%clk 0:00:07.2]} 45... Rd1 {[%clk 0:00:26.1]} 46.
Nc3 {[%clk 0:00:07]} 46... Rd2 {[%clk 0:00:25.4]} 47. Ne4 {[%clk 0:00:07.4]}
47... Rd1 {[%clk 0:00:16]} 48. Nf2 {[%clk 0:00:07]} 48... Rd2 {[%clk 0:00:16]}
49. Ne4 {[%clk 0:00:07.2]} 49... Re2 {[%clk 0:00:16.5]} 50. Rxd3 {[%clk
0:00:05.7]} 50... h4 {[%clk 0:00:16.6]} 51. Rd2 {[%clk 0:00:03.9]} 51... hxg3+
{[%clk 0:00:16]} 52. Kh3 {[%clk 0:00:04.5]} 52... Re1 {[%clk 0:00:07.6]} 53.
Nxg3 {[%clk 0:00:04.5]} 53... Ne3 {[%clk 0:00:08.1]} 54. Kh2 {[%clk 0:00:03.4]}
54... Rc1 {[%clk 0:00:06.4]} 55. Re2 {[%clk 0:00:03.2]} 55... Nd5 {[%clk
0:00:06.5]} 56. Ne4 {[%clk 0:00:02.8]} 56... Nf4 {[%clk 0:00:06.9]} 57. Rd2
{[%clk 0:00:03.3]} 57... Re1 {[%clk 0:00:07.2]} 58. Kg3 {[%clk 0:00:03.7]} 58...
Ne6 {[%clk 0:00:07.8]} 59. Kf2 {[%clk 0:00:04]} 59... Ra1 {[%clk 0:00:05.7]} 60.
Rd7 {[%clk 0:00:04]} 60... Ra5 {[%clk 0:00:06.2]} 61. Kg3 {[%clk 0:00:04.2]}
61... Re5 {[%clk 0:00:06.8]} 62. Nd6 {[%clk 0:00:04.2]} 62... Ng5 {[%clk
0:00:05.6]} 63. f4 {[%clk 0:00:04.7]} 63... Ne4+ {[%clk 0:00:05.4]} 64. Nxe4
{[%clk 0:00:01.4]} 64... Rxe4 {[%clk 0:00:06.3]} 65. Kf3 {[%clk 0:00:02.3]}
65... Rb4 {[%clk 0:00:06.1]} 66. g3 {[%clk 0:00:02.8]} 66... Rb3+ {[%clk
0:00:06.5]} 67. Kg2 {[%clk 0:00:03.3]} 67... Rb2+ {[%clk 0:00:06.6]} 68. Kf3
{[%clk 0:00:03.1]} 68... Rb3+ {[%clk 0:00:07.2]} 69. Kg2 {[%clk 0:00:03.5]}
69... Rb2+ {[%clk 0:00:07.8]} 70. Kf3 {[%clk 0:00:04]} 70... Rb3+ {[%clk
0:00:08.3]} 1/2-1/2

[Event "*** Titled Tuesday Blitz"]
[Site "Chess.com"]
[Date "2020.04.21"]
[Round "5"]
[White "2L8IWUN"]
[Black "Hanging_pointer"]
[Result "1/2-1/2"]
[WhiteElo "2445"]
[BlackElo "2602"]
[TimeControl "180+1"]
[EndTime "10:58:29 PDT"]
[Termination "Game drawn by repetition"]

1. Nf3 {[%clk 0:03:00.9]} 1... d5 {[%clk 0:02:59.4]} 2. b3 {[%clk 0:03:01.3]}
2... c5 {[%clk 0:02:58.5]} 3. Bb2 {[%clk 0:03:00.1]} 3... Nc6 {[%clk 0:02:59]}
4. e3 {[%clk 0:03:00.7]} 4... Nf6 {[%clk 0:02:58]} 5. Be2 {[%clk 0:03:00.8]}
5... Bf5 {[%clk 0:02:56.7]} 6. O-O {[%clk 0:02:58.8]} 6... e6 {[%clk 0:02:56.9]}
7. d4 {[%clk 0:02:58.5]} 7... cxd4 {[%clk 0:02:54.4]} 8. Nxd4 {[%clk 0:02:52.8]}
8... Nxd4 {[%clk 0:02:48.8]} 9. Bxd4 {[%clk 0:02:49.9]} 9... Be7 {[%clk
0:02:48.3]} 10. c4 {[%clk 0:02:49.8]} 10... O-O {[%clk 0:02:44.7]} 11. cxd5
{[%clk 0:02:43.4]} 11... Nxd5 {[%clk 0:02:35.7]} 12. Nc3 {[%clk 0:02:39.5]}
12... Nxc3 {[%clk 0:02:22.9]} 13. Bxc3 {[%clk 0:02:40.4]} 13... Qb6 {[%clk
0:02:15.7]} 14. Bd4 {[%clk 0:02:34.4]} 14... Qa5 {[%clk 0:02:07]} 15. Bd3 {[%clk
0:02:17.3]} 15... Bxd3 {[%clk 0:02:02.2]} 16. Qxd3 {[%clk 0:02:13.5]} 16... Rfd8
{[%clk 0:02:02.4]} 17. Qc3 {[%clk 0:01:58.7]} 17... Bb4 {[%clk 0:01:59]} 18. Qc2
{[%clk 0:01:36]} 18... Rac8 {[%clk 0:01:48.7]} 19. Qe4 {[%clk 0:01:29.7]} 19...
b6 {[%clk 0:01:40.3]} 20. h3 {[%clk 0:01:23.1]} 20... Bc5 {[%clk 0:01:27.4]} 21.
Bxc5 {[%clk 0:01:21.3]} 21... Qxc5 {[%clk 0:01:28.3]} 22. Rfd1 {[%clk 0:01:18]}
22... h6 {[%clk 0:01:23.4]} 23. Qf3 {[%clk 0:01:14.5]} 23... Qc2 {[%clk
0:01:19.5]} 24. g3 {[%clk 0:01:12.9]} 24... a5 {[%clk 0:01:05.9]} 25. Kg2 {[%clk
0:01:11]} 25... b5 {[%clk 0:01:03.2]} 26. Qb7 {[%clk 0:00:57.6]} 26... b4 {[%clk
0:00:50.3]} 27. Qf3 {[%clk 0:00:56.7]} 27... Rd2 {[%clk 0:00:46.4]} 28. e4
{[%clk 0:00:51.6]} 28... Rc3 {[%clk 0:00:44]} 29. Rxd2 {[%clk 0:00:48.8]} 29...
Qxd2 {[%clk 0:00:44.4]} 30. Rd1 {[%clk 0:00:47.6]} 30... Qg5 {[%clk 0:00:34]}
31. h4 {[%clk 0:00:35.6]} 31... Qe7 {[%clk 0:00:32.9]} 32. Qf4 {[%clk
0:00:33.5]} 32... Rc2 {[%clk 0:00:28.5]} 33. Rd2 {[%clk 0:00:31.6]} 33... Rxd2
{[%clk 0:00:28.1]} 34. Qxd2 {[%clk 0:00:32.5]} 34... Qc5 {[%clk 0:00:28.5]} 35.
Kf3 {[%clk 0:00:29.3]} 35... Qc7 {[%clk 0:00:26.4]} 36. Qf4 {[%clk 0:00:26.6]}
36... Qc2 {[%clk 0:00:24.5]} 37. e5 {[%clk 0:00:23.8]} 37... Qxa2 {[%clk
0:00:22.5]} 38. Qe4 {[%clk 0:00:20.7]} 38... Qxb3+ {[%clk 0:00:22.1]} 39. Ke2
{[%clk 0:00:18.6]} 39... Qa2+ {[%clk 0:00:20.1]} 40. Ke3 {[%clk 0:00:17.6]}
40... b3 {[%clk 0:00:15]} 41. Qa8+ {[%clk 0:00:15.4]} 41... Kh7 {[%clk
0:00:14.8]} 42. Qe4+ {[%clk 0:00:16.3]} 42... g6 {[%clk 0:00:13.9]} 43. h5
{[%clk 0:00:12.7]} 43... Qc2 {[%clk 0:00:11.4]} 44. hxg6+ {[%clk 0:00:11.5]}
44... fxg6 {[%clk 0:00:12.3]} 45. Qb7+ {[%clk 0:00:10.1]} 45... Kg8 {[%clk
0:00:12.4]} 46. Qb8+ {[%clk 0:00:10.5]} 46... Kf7 {[%clk 0:00:12.4]} 47. Qa7+
{[%clk 0:00:08.2]} 47... Ke8 {[%clk 0:00:11.7]} 48. Qb8+ {[%clk 0:00:07.7]}
48... Kd7 {[%clk 0:00:11.6]} 49. Qb7+ {[%clk 0:00:06.8]} 49... Qc7 {[%clk
0:00:08.2]} 50. Qb5+ {[%clk 0:00:06.1]} 50... Qc6 {[%clk 0:00:08]} 51. Qxb3
{[%clk 0:00:05.3]} 51... Qc5+ {[%clk 0:00:05.2]} 52. Ke2 {[%clk 0:00:02.3]}
52... Qxe5+ {[%clk 0:00:04.5]} 53. Kf1 {[%clk 0:00:01.6]} 53... Qd5 {[%clk
0:00:03]} 54. Qa4+ {[%clk 0:00:01.5]} 54... Kd6 {[%clk 0:00:03.3]} 55. Qe8
{[%clk 0:00:02.1]} 55... Ke5 {[%clk 0:00:03.6]} 56. Qf8 {[%clk 0:00:02.5]} 56...
Qd3+ {[%clk 0:00:03.5]} 57. Kg2 {[%clk 0:00:02.2]} 57... Qf5 {[%clk 0:00:04.4]}
58. Qh8+ {[%clk 0:00:01.7]} 58... Qf6 {[%clk 0:00:04.5]} 59. Qxh6 {[%clk
0:00:02.2]} 59... a4 {[%clk 0:00:04.8]} 60. Qc1 {[%clk 0:00:02.8]} 60... Qf5
{[%clk 0:00:02.7]} 61. Qa1+ {[%clk 0:00:03.1]} 61... Kd6 {[%clk 0:00:02.1]} 62.
Qxa4 {[%clk 0:00:03.6]} 62... Qd5+ {[%clk 0:00:02.9]} 63. Kh2 {[%clk 0:00:03]}
63... Ke7 {[%clk 0:00:03.8]} 64. Qh4+ {[%clk 0:00:02.4]} 64... Kd7 {[%clk
0:00:02.7]} 65. Qf4 {[%clk 0:00:02.6]} 65... Qd6 {[%clk 0:00:02.6]} 66. Qxd6+
{[%clk 0:00:02]} 66... Kxd6 {[%clk 0:00:02.8]} 67. Kg2 {[%clk 0:00:02.3]} 67...
Ke5 {[%clk 0:00:03.7]} 68. Kf3 {[%clk 0:00:02.9]} 68... Kf5 {[%clk 0:00:04.6]}
69. g4+ {[%clk 0:00:02.5]} 69... Ke5 {[%clk 0:00:04.5]} 70. Ke3 {[%clk
0:00:02.9]} 70... g5 {[%clk 0:00:04.8]} 71. f3 {[%clk 0:00:02.8]} 71... Kd5
{[%clk 0:00:04.3]} 72. Kd3 {[%clk 0:00:03]} 72... Ke5 {[%clk 0:00:04.1]} 73. Ke3
{[%clk 0:00:03.2]} 73... Kd5 {[%clk 0:00:04.4]} 74. Kd3 {[%clk 0:00:03.6]} 74...
Ke5 {[%clk 0:00:04.9]} 75. Ke3 {[%clk 0:00:03.9]} 1/2-1/2

[Event "*** Titled Tuesday Blitz"]
[Site "Chess.com"]
[Date "2020.04.21"]
[Round "5"]
[White "vaishali2001"]
[Black "isla88"]
[Result "1-0"]
[WhiteElo "2500"]
[BlackElo "2305"]
[TimeControl "180+1"]
[EndTime "10:58:36 PDT"]
[Termination "vaishali2001 won by resignation"]

1. e4 {[%clk 0:03:00.9]} 1... c5 {[%clk 0:02:59.5]} 2. Nf3 {[%clk 0:03:00.8]}
2... Nc6 {[%clk 0:02:59.1]} 3. d4 {[%clk 0:02:59.7]} 3... cxd4 {[%clk
0:02:58.8]} 4. Nxd4 {[%clk 0:03:00.6]} 4... e5 {[%clk 0:02:59.2]} 5. Nb5 {[%clk
0:03:00.5]} 5... d6 {[%clk 0:02:59.4]} 6. N1c3 {[%clk 0:03:00.5]} 6... a6 {[%clk
0:02:59.4]} 7. Na3 {[%clk 0:03:00.3]} 7... Be7 {[%clk 0:02:59.8]} 8. Nd5 {[%clk
0:02:57.1]} 8... Nf6 {[%clk 0:02:59.5]} 9. Be3 {[%clk 0:02:30.1]} 9... Nxd5
{[%clk 0:02:56.5]} 10. exd5 {[%clk 0:02:31]} 10... Nb8 {[%clk 0:02:56.6]} 11.
Nc4 {[%clk 0:02:30.9]} 11... Nd7 {[%clk 0:02:55.9]} 12. a4 {[%clk 0:02:24.9]}
12... O-O {[%clk 0:02:43.2]} 13. Be2 {[%clk 0:02:17.5]} 13... f5 {[%clk
0:02:42.8]} 14. f4 {[%clk 0:02:15.5]} 14... g5 {[%clk 0:02:13.6]} 15. fxe5
{[%clk 0:02:03.8]} 15... dxe5 {[%clk 0:02:10.3]} 16. d6 {[%clk 0:01:58.9]} 16...
Bf6 {[%clk 0:02:10]} 17. Qd5+ {[%clk 0:01:58.2]} 17... Kh8 {[%clk 0:02:08.7]}
18. O-O-O {[%clk 0:01:49.4]} 18... f4 {[%clk 0:02:03.4]} 19. Bf2 {[%clk
0:01:36.4]} 19... Rb8 {[%clk 0:01:48.5]} 20. a5 {[%clk 0:01:13.5]} 20... b5
{[%clk 0:01:48.6]} 21. axb6 {[%clk 0:01:10.9]} 21... Bb7 {[%clk 0:01:48.7]} 22.
Qe6 {[%clk 0:01:05.7]} 22... Bxg2 {[%clk 0:01:40.8]} 23. Bg4 {[%clk 0:01:00.4]}
23... Bxh1 {[%clk 0:01:30.4]} 24. Rxh1 {[%clk 0:01:01.3]} 24... Nxb6 {[%clk
0:01:21.5]} 25. Nxe5 {[%clk 0:00:53.7]} 25... Qe8 {[%clk 0:00:58]} 26. Qxe8
{[%clk 0:00:19.4]} 26... Rfxe8 {[%clk 0:00:58.9]} 27. Nd3 {[%clk 0:00:18]} 27...
Nc4 {[%clk 0:00:54.5]} 28. b3 {[%clk 0:00:17.4]} 28... Nxd6 {[%clk 0:00:53.1]}
29. h4 {[%clk 0:00:15]} 29... Ne4 {[%clk 0:00:50.9]} 30. hxg5 {[%clk 0:00:13.8]}
30... Nxf2 {[%clk 0:00:50.4]} 31. Nxf2 {[%clk 0:00:14.7]} 31... Bxg5 {[%clk
0:00:50.3]} 32. Bf5 {[%clk 0:00:15]} 32... f3+ {[%clk 0:00:49.3]} 33. Kb2 {[%clk
0:00:14.7]} 33... h6 {[%clk 0:00:48.8]} 34. Rh3 {[%clk 0:00:12.9]} 34... Kg7
{[%clk 0:00:44]} 35. Rxf3 {[%clk 0:00:12.5]} 35... Rf8 {[%clk 0:00:44.6]} 36.
Ne4 {[%clk 0:00:09.9]} 36... Rb5 {[%clk 0:00:40]} 37. Ng3 {[%clk 0:00:09.3]}
37... Bh4 {[%clk 0:00:34.2]} 38. c4 {[%clk 0:00:07.6]} 38... Re5 {[%clk
0:00:30.4]} 39. Nh5+ {[%clk 0:00:07.4]} 39... Kh8 {[%clk 0:00:30.7]} 40. Be4
{[%clk 0:00:04.2]} 40... Rxf3 {[%clk 0:00:27.7]} 41. Bxf3 {[%clk 0:00:05.1]}
41... Re3 {[%clk 0:00:23.4]} 42. Bg4 {[%clk 0:00:04.9]} 42... Bg5 {[%clk
0:00:20.3]} 43. Ka3 {[%clk 0:00:04.4]} 43... a5 {[%clk 0:00:16.8]} 44. Ka4
{[%clk 0:00:04.8]} 44... Re5 {[%clk 0:00:16.2]} 45. Bf3 {[%clk 0:00:04.9]} 45...
Bd2 {[%clk 0:00:15.7]} 46. Bg4 {[%clk 0:00:02.5]} 46... Rg5 {[%clk 0:00:15.3]}
47. Be2 {[%clk 0:00:02.4]} 47... Kh7 {[%clk 0:00:14.4]} 48. Nf6+ {[%clk
0:00:02.6]} 48... Kg7 {[%clk 0:00:09.9]} 49. Ne4 {[%clk 0:00:02.7]} 49... Re5
{[%clk 0:00:10.1]} 50. Bd3 {[%clk 0:00:02.9]} 50... Be1 {[%clk 0:00:09.2]} 51.
Nd6 {[%clk 0:00:02.1]} 51... h5 {[%clk 0:00:08.9]} 52. Nf5+ {[%clk 0:00:02.2]}
52... Kf6 {[%clk 0:00:09.1]} 53. Nd4 {[%clk 0:00:01.5]} 53... h4 {[%clk
0:00:08.8]} 54. Nf3 {[%clk 0:00:02]} 54... Re3 {[%clk 0:00:08.4]} 55. Nxe1
{[%clk 0:00:02.4]} 55... Rxe1 {[%clk 0:00:07.5]} 56. c5 {[%clk 0:00:03.3]} 56...
h3 {[%clk 0:00:07.4]} 57. c6 {[%clk 0:00:03.7]} 57... h2 {[%clk 0:00:07.2]} 58.
c7 {[%clk 0:00:04.1]} 58... Rc1 {[%clk 0:00:06.7]} 59. Bc4 {[%clk 0:00:04]}
59... h1=Q {[%clk 0:00:03.8]} 60. c8=Q {[%clk 0:00:04.2]} 60... Ra1+ {[%clk
0:00:03.6]} 61. Kb5 {[%clk 0:00:04.5]} 61... Qh5+ {[%clk 0:00:03.2]} 62. Kb6
{[%clk 0:00:04.7]} 62... Qd5 {[%clk 0:00:01.1]} 63. Bxd5 {[%clk 0:00:04.4]}
63... Rd1 {[%clk 0:00:01.7]} 64. Qe6+ {[%clk 0:00:04.5]} 64... Kg5 {[%clk
0:00:01.7]} 65. Qe5+ {[%clk 0:00:04.8]} 65... Kg4 {[%clk 0:00:01.9]} 66. Qe4+
{[%clk 0:00:04.8]} 66... Kg5 {[%clk 0:00:02]} 67. Qe3+ {[%clk 0:00:05.2]} 67...
Kf6 {[%clk 0:00:02.3]} 68. Qf3+ {[%clk 0:00:05.6]} 68... Ke7 {[%clk 0:00:02.4]}
69. Qxd1 {[%clk 0:00:06.5]} 69... Kd6 {[%clk 0:00:03.1]} 70. Bc4+ {[%clk
0:00:07.4]} 70... Ke5 {[%clk 0:00:03]} 71. Qd5+ {[%clk 0:00:07.4]} 71... Kf4
{[%clk 0:00:03.9]} 72. Qe6 {[%clk 0:00:07.4]} 1-0

[Event "*** Titled Tuesday Blitz"]
[Site "Chess.com"]
[Date "2020.04.21"]
[Round "5"]
[White "crescentmoon2411"]
[Black "FairChess_on_YouTube"]
[Result "1/2-1/2"]
[WhiteElo "2776"]
[BlackElo "3035"]
[TimeControl "180+1"]
[EndTime "10:58:39 PDT"]
[Termination "Game drawn by repetition"]

1. e4 {[%clk 0:03:00.9]} 1... c5 {[%clk 0:02:57.8]} 2. Nf3 {[%clk 0:03:00.6]}
2... e6 {[%clk 0:02:58]} 3. g3 {[%clk 0:02:53.8]} 3... Nc6 {[%clk 0:02:55.5]} 4.
Bg2 {[%clk 0:02:53.7]} 4... Nf6 {[%clk 0:02:54.7]} 5. Qe2 {[%clk 0:02:52.8]}
5... e5 {[%clk 0:02:46.9]} 6. O-O {[%clk 0:02:52]} 6... d6 {[%clk 0:02:46.6]} 7.
c3 {[%clk 0:02:47.4]} 7... g6 {[%clk 0:02:46.5]} 8. d3 {[%clk 0:02:45.9]} 8...
Bg7 {[%clk 0:02:46.1]} 9. Na3 {[%clk 0:02:41.2]} 9... O-O {[%clk 0:02:45.6]} 10.
Bg5 {[%clk 0:02:38]} 10... Re8 {[%clk 0:02:38.2]} 11. Nc4 {[%clk 0:02:33.5]}
11... Be6 {[%clk 0:02:35.5]} 12. Ne3 {[%clk 0:02:32.2]} 12... Qd7 {[%clk
0:02:25.3]} 13. Bxf6 {[%clk 0:02:28.3]} 13... Bxf6 {[%clk 0:02:24.6]} 14. Nd2
{[%clk 0:02:22.9]} 14... Bg7 {[%clk 0:02:22]} 15. h3 {[%clk 0:02:16.4]} 15... b5
{[%clk 0:02:21.7]} 16. Kh2 {[%clk 0:02:15.7]} 16... b4 {[%clk 0:02:17.8]} 17.
Ndc4 {[%clk 0:02:13.8]} 17... Rab8 {[%clk 0:02:16.5]} 18. Qc2 {[%clk 0:02:01.8]}
18... Qc7 {[%clk 0:02:11.1]} 19. Qa4 {[%clk 0:01:53.3]} 19... Red8 {[%clk
0:02:08.9]} 20. Rac1 {[%clk 0:01:47.2]} 20... Ne7 {[%clk 0:01:59.9]} 21. h4
{[%clk 0:01:25]} 21... f5 {[%clk 0:01:51.1]} 22. Bh3 {[%clk 0:01:16.5]} 22... d5
{[%clk 0:01:42.3]} 23. exd5 {[%clk 0:01:15.4]} 23... Nxd5 {[%clk 0:01:42.2]} 24.
Nxd5 {[%clk 0:01:13.8]} 24... Bxd5 {[%clk 0:01:38.4]} 25. Ne3 {[%clk 0:01:13.2]}
25... Bc6 {[%clk 0:01:31.7]} 26. Qc2 {[%clk 0:01:04.5]} 26... f4 {[%clk
0:01:15.5]} 27. Nc4 {[%clk 0:01:00.3]} 27... bxc3 {[%clk 0:01:14.5]} 28. bxc3
{[%clk 0:00:59]} 28... Kh8 {[%clk 0:01:14.7]} 29. Bg2 {[%clk 0:00:54]} 29...
Bxg2 {[%clk 0:01:00.9]} 30. Kxg2 {[%clk 0:00:54.9]} 30... Qf7 {[%clk 0:01:01]}
31. Qe2 {[%clk 0:00:50]} 31... Qd5+ {[%clk 0:00:56.3]} 32. Qe4 {[%clk
0:00:47.7]} 32... Qxd3 {[%clk 0:00:55.2]} 33. Qxd3 {[%clk 0:00:46.8]} 33... Rxd3
{[%clk 0:00:56.1]} 34. Rfe1 {[%clk 0:00:44.8]} 34... fxg3 {[%clk 0:00:42.8]} 35.
fxg3 {[%clk 0:00:45.7]} 35... h5 {[%clk 0:00:30.8]} 36. Rc2 {[%clk 0:00:36.9]}
36... Rbd8 {[%clk 0:00:18.8]} 37. Nxe5 {[%clk 0:00:33.6]} 37... Rd2+ {[%clk
0:00:18]} 38. Rxd2 {[%clk 0:00:33.5]} 38... Rxd2+ {[%clk 0:00:18.9]} 39. Kh3
{[%clk 0:00:33.8]} 39... Kh7 {[%clk 0:00:18.9]} 40. Nf3 {[%clk 0:00:33.4]} 40...
Rd8 {[%clk 0:00:12.5]} 41. Re7 {[%clk 0:00:31.5]} 41... Kg8 {[%clk 0:00:11.6]}
42. c4 {[%clk 0:00:31.6]} 42... Rd3 {[%clk 0:00:09.7]} 43. Ng5 {[%clk
0:00:31.3]} 43... Bf6 {[%clk 0:00:09]} 44. Rxa7 {[%clk 0:00:30.8]} 44... Bxg5
{[%clk 0:00:08.8]} 45. hxg5 {[%clk 0:00:31.7]} 45... Rc3 {[%clk 0:00:07.8]} 46.
a4 {[%clk 0:00:28.6]} 46... Rxc4 {[%clk 0:00:07.7]} 47. Rc7 {[%clk 0:00:21.7]}
47... Rxa4 {[%clk 0:00:06.7]} 48. Rxc5 {[%clk 0:00:21.8]} 48... Kf7 {[%clk
0:00:06.1]} 49. Re5 {[%clk 0:00:20.3]} 49... Ra6 {[%clk 0:00:05]} 50. Kg2 {[%clk
0:00:18.4]} 50... Ra4 {[%clk 0:00:04.7]} 51. Kh3 {[%clk 0:00:18.2]} 51... Rb4
{[%clk 0:00:05]} 52. Kg2 {[%clk 0:00:18]} 52... Rc4 {[%clk 0:00:05.3]} 53. Kf3
{[%clk 0:00:18.2]} 53... Rc3+ {[%clk 0:00:05.2]} 54. Kf4 {[%clk 0:00:18]} 54...
Rc4+ {[%clk 0:00:05.7]} 55. Kf3 {[%clk 0:00:18.3]} 55... Rc6 {[%clk 0:00:05.9]}
56. Kf4 {[%clk 0:00:18.2]} 56... Rc3 {[%clk 0:00:05.7]} 57. Ra5 {[%clk
0:00:15.9]} 57... Rc4+ {[%clk 0:00:06]} 58. Kf3 {[%clk 0:00:16]} 58... Ke6
{[%clk 0:00:06.3]} 59. Rb5 {[%clk 0:00:16.2]} 59... Rd4 {[%clk 0:00:06.3]} 60.
Rb6+ {[%clk 0:00:14.4]} 60... Kf5 {[%clk 0:00:05.4]} 61. Rb5+ {[%clk 0:00:14.7]}
61... Ke6 {[%clk 0:00:05.9]} 62. Rb6+ {[%clk 0:00:14.8]} 62... Rd6 {[%clk
0:00:06.4]} 63. Rxd6+ {[%clk 0:00:04.8]} 63... Kxd6 {[%clk 0:00:07.3]} 64. g4
{[%clk 0:00:05.3]} 64... h4 {[%clk 0:00:06.4]} 65. Kg2 {[%clk 0:00:05.5]} 65...
Ke5 {[%clk 0:00:06.4]} 66. Kh3 {[%clk 0:00:06.2]} 66... Ke4 {[%clk 0:00:05]} 67.
Kxh4 {[%clk 0:00:07.1]} 67... Kf4 {[%clk 0:00:05]} 68. Kh3 {[%clk 0:00:07.8]}
68... Kf3 {[%clk 0:00:05.4]} 69. Kh4 {[%clk 0:00:07.6]} 69... Kf4 {[%clk
0:00:05.6]} 70. Kh3 {[%clk 0:00:08.1]} 70... Kxg5 {[%clk 0:00:05.7]} 71. Kg3
{[%clk 0:00:08.6]} 71... Kf6 {[%clk 0:00:06.2]} 72. Kf4 {[%clk 0:00:09.1]} 72...
g5+ {[%clk 0:00:06.2]} 73. Ke4 {[%clk 0:00:09.4]} 73... Ke6 {[%clk 0:00:06.7]}
74. Kd4 {[%clk 0:00:08.9]} 74... Kd6 {[%clk 0:00:07]} 75. Ke4 {[%clk 0:00:09]}
75... Ke6 {[%clk 0:00:07.5]} 76. Kd4 {[%clk 0:00:09.5]} 76... Kd6 {[%clk
0:00:07.3]} 77. Ke4 {[%clk 0:00:09.9]} 77... Ke6 {[%clk 0:00:07.7]} 1/2-1/2